fUST/lending_fUST_20250718
["ID","MTS","AMOUNT","RATE_DAILY","PERIOD"]
[372911091,1752803443066,-160.0,0.00018415,2]
[372911093,1752803443075,-12607.95677342,0.00018415,2]
[372911095,1752803443084,-160.0,0.00018415,2]
[372911097,1752803443096,-214.44804168,0.00018415,2]
[372911099,1752803443106,-160.0,0.00018415,2]
[372911101,1752803443116,-160.0,0.00018415,2]
[372911103,1752803443126,-839.15451687,0.00018416,2]
[372911105,1752803443136,-160.0,0.00018416,2]
[372911107,1752803443149,-525.67742785,0.00018416,2]
[372911109,1752803443169,-476.16111942,0.00018416,2]
[372911111,1752803443186,-160.0,0.00018416,2]
[372911113,1752803443195,-215.59244943,0.00018416,2]
[372911115,1752803443205,-230.85589339,0.00018416,2]
[372911117,1752803443214,-160.0,0.00018416,2]
[372911119,1752803443224,-608.91,0.00018484,2]
[372911121,1752803443233,-151.0,0.00018485,2]
[372911123,1752803443242,-151.0,0.00018485,2]
[372911125,1752803443252,-151.0,0.000185,2]
[372911127,1752803443261,-522.63,0.00018629,2]
[372911129,1752803443271,-1029.16,0.00018629,2]
[372911131,1752803443281,-217.83981582,0.00018629,2]
[372911133,1752803443291,-733.38,0.00018629,2]
[372911135,1752803443301,-2425.12,0.00018629,2]
[372911137,1752803443310,-460.0,0.0001863,2]
[372911139,1752803443322,-151.487078,0.0001863,2]
[372911142,1752803443331,-151.0,0.0001863,2]
[372911144,1752803443340,-588.97,0.0001863,2]
[372911145,1752803443352,-460.0,0.0001863,2]
[372911148,1752803443362,-1326.95,0.0001863,2]
[372911150,1752803443371,-635.59,0.0001863,2]
[372911152,1752803443381,-460.0,0.0001863,2]
[372911154,1752803443390,-779.11,0.0001863,2]
[372911157,1752803443400,-1201.251549,0.0001863,2]
[372911158,1752803443410,-1201.251549,0.0001863,2]
[372911161,1752803443419,-460.0,0.0001863,2]
[372911163,1752803443429,-1340.87,0.0001863,2]
[372911165,1752803443438,-685.18,0.0001863,2]
[372911166,1752803443447,-460.0,0.0001863,2]
[372911168,1752803443456,-493.59,0.0001863,2]
[372911170,1752803443466,-493.43,0.0001863,2]
[372911172,1752803443477,-460.0,0.0001863,2]
[372911174,1752803443488,-460.0,0.0001863,2]
[372911176,1752803443499,-598.45,0.0001863,2]
[372911179,1752803443511,-1316.85,0.0001863,2]
[372911181,1752803443521,-468.0,0.00018661,2]
[372911183,1752803443530,-500.0,0.00018661,2]
[372911184,1752803443539,-608.91,0.00018799,2]
[372911186,1752803443549,-2000.0,0.000188,6]
[372911188,1752803443558,-151.0,0.000188,2]
[372911190,1752803443567,-260.0,0.0001884,2]
[372911192,1752803443576,-151.0,0.000189,2]
[372911194,1752803443585,-151.983661,0.000189,2]
[372911196,1752803443595,-151.0,0.000189,2]
[372911198,1752803443606,-1888.41762393,0.000189,2]
[372911200,1752803443618,-522.63,0.00018903,2]
[372911202,1752803443628,-1029.16,0.00018903,2]
[372911204,1752803443637,-733.38,0.00018903,2]
[372911206,1752803443646,-2425.12,0.00018903,2]
[372911208,1752803443657,-151.0,0.00018904,2]
[372911210,1752803443666,-268.150347,0.00018904,2]
[372911212,1752803443675,-151.0,0.00018904,2]
[372911214,1752803443685,-151.0,0.00018904,2]
[372911216,1752803443695,-151.0,0.00018904,2]
[372911218,1752803443704,-151.0,0.00018904,2]
[372911220,1752803443714,-460.0,0.00018904,2]
[372911222,1752803443723,-152.193325,0.00018904,2]
[372911223,1752803443732,-151.0,0.00018904,2]
[372911225,1752803443741,-151.0,0.00018904,2]
[372911227,1752803443751,-151.0,0.00018904,2]
[372911229,1752803443760,-151.0,0.00018904,2]
[372911231,1752803443770,-151.0,0.00018904,2]
[372911233,1752803443779,-151.0,0.00018904,2]
[372911235,1752803443789,-151.0,0.00018904,2]
[372911237,1752803443798,-167.350314,0.00018904,2]
[372911239,1752803443809,-588.97,0.00018904,2]
[372911241,1752803443818,-151.0,0.00018904,2]
[372911243,1752803443827,-151.0,0.00018904,2]
[372911245,1752803443836,-460.0,0.00018904,2]
[372911247,1752803443848,-151.0,0.00018904,2]
[372911249,1752803443858,-1326.95,0.00018904,2]
[372911251,1752803443867,-635.59,0.00018904,2]
[372911254,1752803443877,-460.0,0.00018904,2]
[372911256,1752803443887,-151.0,0.00018904,2]
[372911258,1752803443896,-779.11,0.00018904,2]
[372911259,1752803443906,-151.0,0.00018904,2]
[372911261,1752803443915,-161.64032586,0.00018904,2]
[372911263,1752803443924,-1340.87,0.00018904,2]
[372911265,1752803443934,-685.18,0.00018904,2]
[372911267,1752803443943,-460.0,0.00018904,2]
[372911269,1752803443952,-493.59,0.00018904,2]
[372911271,1752803443962,-493.43,0.00018904,2]
[372911273,1752803443971,-460.0,0.00018904,2]
[372911275,1752803443980,-460.0,0.00018904,2]
[372911277,1752803443990,-598.45,0.00018904,2]
[372911279,1752803443999,-1316.85,0.00018904,2]
[372911281,1752803444009,-151.0,0.00018904,2]
[372911283,1752803444019,-436.075283,0.00018904,2]
[372911285,1752803444028,-429.2412091,0.00018904,2]
[372911287,1752803444038,-429.2412091,0.00018904,2]
[372911290,1752803444048,-601.5812327,0.00018904,2]
[372911292,1752803444057,-468.0,0.00018935,2]
[372911294,1752803444067,-500.0,0.00018935,2]
[372911295,1752803444076,-206.58865465,0.0001895,2]
[372911296,1752803444085,-608.91,0.00018999,2]
[372911297,1752803444095,-4576.01830045,0.00019,2]
[372911298,1752803444104,-11636.72331745,0.00019,20]
[372911299,1752803444114,-151.0,0.00019,2]
[372911300,1752803444123,-151.0,0.00019,2]
[372911301,1752803444132,-151.0,0.00019,2]
[372911302,1752803444142,-151.0,0.00019,2]
[372911303,1752803444152,-151.0,0.00019177,2]
[372911304,1752803444162,-151.0,0.00019177,2]
[372911305,1752803444173,-522.63,0.00019177,2]
[372911306,1752803444182,-608.91,0.00019177,2]
[372911307,1752803444192,-1029.16,0.00019177,2]
[372911308,1752803444203,-733.38,0.00019177,2]
[372911309,1752803444212,-2425.12,0.00019177,2]
[372911310,1752803444222,-151.0,0.00019178,2]
[372911311,1752803444233,-501.98123787,0.00019178,2]
[372911312,1752803444244,-519.51779239,0.00019178,7]
[372911313,1752803444255,-248.66961949,0.00019178,2]
[372911314,1752803444266,-151.0,0.00019178,2]
[372911315,1752803444278,-460.0,0.00019178,2]
[372911316,1752803444288,-588.97,0.00019178,2]
[372911319,1752803444299,-460.0,0.00019178,2]
[372911320,1752803444311,-1326.95,0.00019178,2]
[372911322,1752803444321,-635.59,0.00019178,2]
[372911323,1752803444330,-460.0,0.00019178,2]
[372911325,1752803444340,-779.11,0.00019178,2]
[372911327,1752803444352,-1340.87,0.00019178,2]
[372911329,1752803444361,-685.18,0.00019178,2]
[372911331,1752803444371,-312.22082308,0.00019178,2]
[372911333,1752803444380,-493.59,0.00019178,2]
[372911335,1752803444390,-493.43,0.00019178,2]
[372911337,1752803444400,-460.0,0.00019178,2]
[372911339,1752803444409,-460.0,0.00019178,2]
[372911341,1752803444419,-598.45,0.00019178,2]
[372911343,1752803444429,-1316.85,0.00019178,2]
[372911345,1752803444438,-5000.0,0.00019178,2]
[372911347,1752803444448,-666.0,0.00019178,2]
[372911349,1752803444458,-214.212705,0.00019178,2]
[372911351,1752803444468,-151.0,0.000192,2]
[372911353,1752803444477,-468.0,0.00019209,2]
[372911355,1752803444487,-500.0,0.00019209,2]
[372911358,1752803444496,-284.56970691,0.00019326,2]
[372911359,1752803444507,-608.91,0.00019328,2]
[372911362,1752803444518,-151.0,0.00019329,2]
[372911364,1752803444527,-151.0,0.00019329,2]
[372911365,1752803444537,-151.0,0.00019329,2]
[372911367,1752803444547,-151.0,0.00019329,2]
[372911369,1752803444558,-152.712217,0.00019329,2]
[372911371,1752803444567,-151.0,0.00019329,2]
[372911373,1752803444579,-151.0,0.00019329,2]
[372911375,1752803444588,-151.0,0.00019329,2]
[372911377,1752803444600,-151.0,0.00019329,2]
[372911379,1752803444612,-151.0,0.00019329,2]
[372911381,1752803444622,-151.0,0.00019329,2]
[372911383,1752803444631,-151.0,0.00019329,2]
[372911385,1752803444640,-151.0,0.00019329,2]
[372911387,1752803444649,-151.43681,0.00019329,2]
[372911389,1752803444661,-151.0,0.00019329,2]
[372911391,1752803444670,-264.386969,0.00019329,2]
[372911393,1752803444679,-264.386969,0.00019329,2]
[372911395,1752803444690,-151.0,0.00019329,2]
[372911397,1752803444701,-151.0,0.00019329,2]
[372911399,1752803444710,-152.619523,0.00019329,2]
[372911401,1752803444720,-152.278939,0.00019329,2]
[372911403,1752803444729,-151.257018,0.00019329,2]
[372911405,1752803444738,-151.804347,0.00019329,2]
[372911407,1752803444747,-151.0,0.00019329,2]
[372911409,1752803444756,-151.0,0.00019329,2]
[372911410,1752803444765,-172.867184,0.00019329,2]
[372911412,1752803444775,-172.867184,0.00019329,2]
[372911414,1752803444784,-151.0,0.00019329,2]
[372911416,1752803444793,-151.0,0.00019329,2]
[372911418,1752803444803,-151.0,0.00019329,2]
[372911420,1752803444812,-165.080858,0.00019329,2]
[372911422,1752803444822,-151.0,0.00019329,2]
[372911424,1752803444831,-152.248119,0.00019329,2]
[372911426,1752803444841,-151.0,0.00019329,2]
[372911428,1752803444851,-151.0,0.00019329,2]
[372911430,1752803444861,-151.0,0.00019329,2]
[372911432,1752803444870,-151.0,0.00019329,2]
[372911434,1752803444879,-151.0,0.00019329,2]
[372911436,1752803444890,-152.621817,0.00019329,2]
[372911438,1752803444899,-151.0,0.00019329,2]
[372911440,1752803444908,-151.0,0.00019329,2]
[372911442,1752803444917,-151.0,0.00019329,2]
[372911444,1752803444927,-151.0,0.00019329,2]
[372911446,1752803444937,-151.0,0.00019329,2]
[372911448,1752803444946,-151.0,0.00019329,2]
[372911450,1752803444956,-167.74923,0.00019329,2]
[372911452,1752803444966,-151.0,0.00019329,2]
[372911454,1752803444975,-151.0,0.00019329,2]
[372911456,1752803444984,-151.0,0.00019329,2]
[372911458,1752803444993,-608.91,0.00019329,2]
[372911460,1752803445003,-608.91,0.00019329,2]
[372911462,1752803445012,-608.91,0.00019329,2]
[372911463,1752803445022,-608.91,0.00019329,2]
[372911465,1752803445031,-608.91,0.00019329,2]
[372911467,1752803445041,-608.91,0.00019329,2]
[372911469,1752803445051,-609.13680943,0.00019329,2]
[372911471,1752803445060,-151.0,0.00019329,2]
[372911482,1752803445157,-151.0,0.00019329,2]
[372911484,1752803445167,-151.0,0.00019329,2]
[372911486,1752803445177,-151.0,0.00019329,2]
[372911488,1752803445187,-1201.251549,0.00019329,2]
[372911490,1752803445197,-1201.251549,0.00019329,2]
[372911492,1752803445206,-1201.251549,0.00019329,2]
[372911494,1752803445216,-1201.251549,0.00019329,2]
[372911496,1752803445225,-175.203962,0.00019329,2]
[372911498,1752803445234,-100000.0,0.00019329,2]
[372911500,1752803445244,-500.0,0.00019373,2]
[372911502,1752803445253,-500.0,0.00019373,2]
[372911504,1752803445268,-500.0,0.00019373,2]
[372911506,1752803445278,-502.99859168,0.00019373,2]
[372911508,1752803445287,-500.50702059,0.00019373,2]
[372911510,1752803445297,-1013.0998427,0.00019385,2]
[372911512,1752803445306,-360.0,0.00019388,2]
[372911514,1752803445316,-370.92347411,0.00019422,2]
[372911516,1752803445325,-522.63,0.00019451,2]
[372911518,1752803445336,-1029.16,0.00019451,2]
[372911520,1752803445346,-733.38,0.00019451,2]
[372911522,1752803445355,-2425.12,0.00019451,2]
[372911524,1752803445364,-220.17848307,0.00019452,2]
[372911526,1752803445374,-460.0,0.00019452,2]
[372911528,1752803445383,-588.97,0.00019452,2]
[372911530,1752803445393,-460.0,0.00019452,2]
[372911533,1752803445403,-1326.95,0.00019452,2]
[372911535,1752803445412,-635.59,0.00019452,2]
[372911538,1752803445421,-460.0,0.00019452,2]
[372911540,1752803445431,-779.11,0.00019452,2]
[372911542,1752803445440,-1340.87,0.00019452,2]
[372911544,1752803445450,-685.18,0.00019452,2]
[372911546,1752803445459,-493.59,0.00019452,2]
[372911548,1752803445469,-493.43,0.00019452,2]
[372911550,1752803445478,-460.0,0.00019452,2]
[372911552,1752803445489,-460.0,0.00019452,2]
[372911554,1752803445498,-598.45,0.00019452,2]
[372911556,1752803445507,-1316.85,0.00019452,2]
[372911558,1752803445517,-468.0,0.00019483,2]
[372911560,1752803445526,-500.0,0.00019483,2]
[372911562,1752803445537,-587.0,0.00019516,2]
[372911564,1752803445546,-7597.62597902,0.00019626,2]
[372911566,1752803445556,-151.0,0.000197,2]
[372911568,1752803445565,-522.63,0.00019725,2]
[372911570,1752803445573,-1029.16,0.00019725,2]
[372911572,1752803445583,-733.38,0.00019725,2]
[372911574,1752803445592,-2425.12,0.00019725,2]
[372911576,1752803445605,-460.0,0.00019726,2]
[372911577,1752803445616,-588.97,0.00019726,2]
[372911579,1752803445625,-284.3319389,0.00019726,2]
[372911581,1752803445635,-1326.95,0.00019726,2]
[372911584,1752803445646,-635.59,0.00019726,2]
[372911586,1752803445655,-460.0,0.00019726,2]
[372911587,1752803445665,-779.11,0.00019726,2]
[372911589,1752803445674,-1340.87,0.00019726,2]
[372911591,1752803445684,-685.18,0.00019726,2]
[372911593,1752803445697,-493.59,0.00019726,2]
[372911595,1752803445706,-493.43,0.00019726,2]
[372911598,1752803445716,-460.0,0.00019726,2]
[372911599,1752803445726,-460.0,0.00019726,2]
[372911602,1752803445736,-598.45,0.00019726,2]
[372911604,1752803445745,-1316.85,0.00019726,2]
[372911605,1752803445757,-468.0,0.00019757,2]
[372911607,1752803445766,-500.0,0.00019757,2]
[372911609,1752803445776,-1439.61129952,0.00019789,2]
[372911611,1752803445785,-17567.6199301,0.00019789,2]
[372911613,1752803445795,-2000.0,0.000198,7]
[372911615,1752803445805,-429.1687796,0.00019863,2]
[372911617,1752803445815,-162.0981448,0.00019863,2]
[372911619,1752803445825,-1288.3631991,0.00019863,2]
[372911621,1752803445835,-154.2602127,0.00019863,2]
[372911623,1752803445847,-153.0,0.00019863,2]
[372911626,1752803445857,-159.7589235,0.00019863,2]
[372911628,1752803445867,-153.0,0.00019863,2]
[372911629,1752803445876,-153.0,0.00019863,2]
[372911631,1752803445887,-230.3749189,0.00019863,2]
[372911633,1752803445896,-159.7589235,0.00019863,2]
[372911635,1752803445906,-159.7589233,0.00019863,2]
[372911638,1752803445916,-159.7589235,0.00019863,2]
[372911640,1752803445925,-159.7589233,0.00019863,2]
[372911642,1752803445935,-159.7589235,0.00019863,2]
[372911644,1752803445944,-159.7589233,0.00019863,2]
[372911646,1752803445954,-159.7589235,0.00019863,2]
[372911647,1752803445963,-245.2779065,0.00019863,2]
[372911649,1752803445972,-506.73499596,0.00019921,2]
[372911652,1752803445982,-501.61924502,0.00019921,2]
[372911654,1752803445993,-501.71492827,0.00019921,2]
[372911656,1752803446003,-485.74752618,0.00019936,2]
[372911658,1752803446012,-501.09296893,0.00019973,2]
[372911660,1752803446023,-502.71379163,0.00019973,2]
[372911662,1752803446033,-501.46377135,0.00019973,2]
[372911664,1752803446042,-503.93358597,0.00019973,2]
[372911666,1752803446051,-644.0334221,0.00019973,2]
[372911668,1752803446061,-501.33414174,0.00019973,2]
[372911670,1752803446070,-500.85686421,0.00019973,2]
[372911672,1752803446080,-501.05616911,0.00019973,2]
[372911674,1752803446092,-385.05416638,0.00019973,2]
[372911676,1752803446102,-500.0,0.00019973,2]
[372911678,1752803446112,-500.0,0.00019973,2]
[372911680,1752803446121,-501.81749173,0.00019973,2]
[372911682,1752803446131,-500.92920359,0.00019973,2]
[372911684,1752803446140,-500.0,0.00019973,2]
[372911686,1752803446152,-376.41137148,0.00019973,2]
[372911688,1752803446166,-135184.45308322,0.0001998,2]
[372911691,1752803446181,-151.0,0.0001998,2]
[372911693,1752803446194,-152.543012,0.0001998,2]
[372911695,1752803446205,-151.0,0.0001998,2]
[372911698,1752803446219,-151.0,0.0001998,2]
[372911700,1752803446231,-151.700656,0.0001998,2]
[372911703,1752803446245,-151.0,0.0001998,2]
[372911705,1752803446258,-237.106522,0.0001998,2]
[372911707,1752803446271,-151.0,0.0001998,2]
[372911710,1752803446285,-269.912175,0.0001998,2]
[372911712,1752803446298,-151.0,0.0001998,2]
[372911714,1752803446312,-151.0,0.0001998,2]
[372911717,1752803446324,-151.0,0.0001998,2]
[372911719,1752803446338,-151.0,0.0001998,2]
[372911721,1752803446352,-151.0,0.0001998,2]
[372911723,1752803446365,-225.240953,0.0001998,2]
[372911726,1752803446378,-1201.251549,0.0001998,2]
[372911728,1752803446392,-1201.251549,0.0001998,2]
[372911730,1752803446403,-136116.3795736,0.00019987,2]
[372911732,1752803446414,-151.0,0.00019987,2]
[372911735,1752803446427,-264.386969,0.00019987,2]
[372911737,1752803446440,-264.386969,0.00019987,2]
[372911739,1752803446453,-151.0,0.00019987,2]
[372911742,1752803446466,-151.0,0.00019987,2]
[372911744,1752803446479,-172.867184,0.00019987,2]
[372911747,1752803446492,-151.0,0.00019987,2]
[372911749,1752803446506,-151.0,0.00019987,2]
[372911751,1752803446520,-151.0,0.00019987,2]
[372911753,1752803446530,-151.0,0.00019987,2]
[372911756,1752803446541,-151.0,0.00019987,2]
[372911758,1752803446552,-151.0,0.00019987,2]
[372911760,1752803446564,-151.0,0.00019987,2]
[372911763,1752803446579,-151.0,0.00019987,2]
[372911765,1752803446593,-151.0,0.00019987,2]
[372911767,1752803446608,-153.562973,0.00019987,2]
[372911769,1752803446623,-151.0,0.00019987,2]
[372911771,1752803446634,-1201.251549,0.00019987,2]
[372911774,1752803446647,-1201.251549,0.00019987,2]
[372911776,1752803446659,-246254.89233106,0.00019989,2]
[372911778,1752803446670,-152.29328,0.00019989,2]
[372911780,1752803446681,-151.0,0.00019989,2]
[372911782,1752803446693,-151.0,0.00019989,2]
[372911784,1752803446704,-151.358384,0.00019989,2]
[372911786,1752803446715,-151.0,0.00019989,2]
[372911788,1752803446727,-151.0,0.00019989,2]
[372911791,1752803446738,-151.0,0.00019989,2]
[372911793,1752803446749,-240.663556,0.00019989,2]
[372911795,1752803446761,-151.0,0.00019989,2]
[372911796,1752803446772,-151.0,0.00019989,2]
[372911797,1752803446783,-151.0,0.00019989,2]
[372911798,1752803446794,-264.386969,0.00019989,2]
[372911799,1752803446805,-264.386969,0.00019989,2]
[372911800,1752803446816,-151.0,0.00019989,2]
[372911801,1752803446826,-156.579367,0.00019989,2]
[372911802,1752803446837,-156.579367,0.00019989,2]
[372911803,1752803446850,-296.776115,0.00019989,2]
[372911804,1752803446861,-172.867184,0.00019989,2]
[372911805,1752803446873,-172.867184,0.00019989,2]
[372911806,1752803446884,-151.0,0.00019989,2]
[372911807,1752803446895,-151.0,0.00019989,2]
[372911808,1752803446906,-151.0,0.00019989,2]
[372911809,1752803446916,-151.0,0.00019989,2]
[372911810,1752803446928,-151.0,0.00019989,2]
[372911811,1752803446939,-151.0,0.00019989,2]
[372911812,1752803446950,-151.0,0.00019989,2]
[372911813,1752803446961,-151.0,0.00019989,2]
[372911814,1752803446972,-151.0,0.00019989,2]
[372911815,1752803446983,-151.0,0.00019989,2]
[372911816,1752803446994,-1201.251549,0.00019989,2]
[372911819,1752803447005,-1201.251549,0.00019989,2]
[372911821,1752803447016,-522.63,0.00019999,2]
[372911823,1752803447028,-1029.16,0.00019999,2]
[372911825,1752803447040,-733.38,0.00019999,2]
[372911827,1752803447052,-2425.12,0.00019999,2]
[372911830,1752803447064,-2019.38617656,0.0002,2]
[372911832,1752803447075,-6159.16119646,0.0002,2]
[372911834,1752803447085,-460.0,0.0002,2]
[372911836,1752803447094,-588.97,0.0002,2]
[372911838,1752803447105,-1326.95,0.0002,2]
[372911840,1752803447114,-635.59,0.0002,2]
[372911842,1752803447123,-460.0,0.0002,2]
[372911844,1752803447133,-779.11,0.0002,2]
[372911846,1752803447142,-1340.87,0.0002,2]
[372911848,1752803447152,-685.18,0.0002,2]
[372911850,1752803447161,-493.59,0.0002,2]
[372911852,1752803447171,-493.43,0.0002,2]
[372911854,1752803447180,-460.0,0.0002,2]
[372911856,1752803447190,-460.0,0.0002,2]
[372911858,1752803447199,-4000.0,0.0002,4]
[372911860,1752803447208,-598.45,0.0002,2]
[372911862,1752803447217,-1316.85,0.0002,2]
[372911864,1752803447226,-160.0,0.0002,3]
[372911866,1752803447235,-160.0,0.0002,3]
[372911868,1752803447245,-468.0,0.00020031,2]
[372911870,1752803447254,-500.0,0.00020031,2]
[372911872,1752803447264,-271.00102,0.00020187,2]
[372911874,1752803447274,-151.0,0.000202,4]
[372911889,1752803447429,-206.58865465,0.00020261,2]
[372911891,1752803447443,-157.568234,0.00020273,2]
[372911893,1752803447453,-151.0,0.00020273,2]
[372911895,1752803447462,-151.0,0.00020273,2]
[372911897,1752803447471,-460.0,0.00020273,2]
[372911899,1752803447480,-522.63,0.00020273,2]
[372911901,1752803447489,-588.97,0.00020273,2]
[372911903,1752803447499,-1326.95,0.00020273,2]
[372911905,1752803447508,-635.59,0.00020273,2]
[372911906,1752803447517,-460.0,0.00020273,2]
[372911908,1752803447526,-1029.16,0.00020273,2]
[372911910,1752803447535,-779.11,0.00020273,2]
[372911912,1752803447544,-1340.87,0.00020273,2]
[372911914,1752803447553,-685.18,0.00020273,2]
[372911916,1752803447563,-733.38,0.00020273,2]
[372911918,1752803447572,-493.59,0.00020273,2]
[372911920,1752803447582,-493.43,0.00020273,2]
[372911922,1752803447591,-460.0,0.00020273,2]
[372911924,1752803447603,-460.0,0.00020273,2]
[372911926,1752803447614,-598.45,0.00020273,2]
[372911928,1752803447623,-2425.12,0.00020273,2]
[372911929,1752803447634,-1316.85,0.00020273,2]
[372911931,1752803447645,-468.0,0.00020305,2]
[372911933,1752803447655,-500.0,0.00020305,2]
[372911935,1752803447664,-1013.0998427,0.00020309,2]
[372911937,1752803447673,-151.0,0.00020398,2]
[372911939,1752803447683,-151.0,0.00020398,2]
[372911941,1752803447693,-151.0,0.00020398,2]
[372911943,1752803447703,-151.0,0.00020398,2]
[372911945,1752803447713,-151.0,0.00020398,2]
[372911947,1752803447722,-151.0,0.00020398,2]
[372911949,1752803447731,-151.0,0.00020398,2]
[372911951,1752803447740,-156.579367,0.00020398,2]
[372911953,1752803447750,-156.579367,0.00020398,2]
[372911955,1752803447759,-201.26391039,0.00020408,2]
[372911957,1752803447769,-151.88071785,0.00020409,2]
[372911959,1752803447779,-207.4,0.00020409,2]
[372911961,1752803447789,-500.0,0.00020409,2]
[372911963,1752803447798,-500.0,0.00020409,2]
[372911965,1752803447807,-523.53672427,0.00020409,2]
[372911967,1752803447816,-151.0,0.00020409,2]
[372911969,1752803447826,-151.0,0.00020409,2]
[372911971,1752803447835,-151.0,0.00020409,2]
[372911973,1752803447844,-151.0,0.00020409,2]
[372911974,1752803447855,-151.0,0.00020409,2]
[372911976,1752803447865,-25000.0,0.00020409,2]
[372911978,1752803447874,-151.0,0.00020409,2]
[372911980,1752803447883,-151.0,0.00020409,2]
[372911982,1752803447893,-151.0,0.00020409,2]
[372911984,1752803447902,-254.51802904,0.00020409,2]
[372911986,1752803447911,-151.0,0.00020409,2]
[372911988,1752803447920,-151.0,0.00020409,2]
[372911990,1752803447929,-13841.66387074,0.00020409,2]
[372911992,1752803447939,-151.0,0.00020409,2]
[372911994,1752803447948,-151.0,0.00020409,2]
[372911996,1752803447958,-184.17851102,0.00020409,2]
[372911998,1752803447967,-151.0,0.00020409,2]
[372912000,1752803447976,-151.0,0.00020409,2]
[372912002,1752803447985,-151.0,0.00020409,2]
[372912004,1752803447996,-151.0,0.00020409,2]
[372912006,1752803448006,-151.0,0.00020409,2]
[372912008,1752803448015,-151.0,0.00020409,2]
[372912010,1752803448025,-152.16289706,0.00020409,2]
[372912012,1752803448034,-151.0,0.00020409,2]
[372912014,1752803448043,-151.0,0.00020409,2]
[372912016,1752803448052,-151.0,0.00020409,2]
[372912017,1752803448062,-151.0,0.00020409,2]
[372912019,1752803448071,-151.0,0.00020409,2]
[372912021,1752803448081,-151.0,0.00020409,2]
[372912023,1752803448090,-151.0,0.00020409,2]
[372912025,1752803448100,-151.0,0.00020409,2]
[372912027,1752803448110,-151.0,0.00020409,2]
[372912029,1752803448120,-151.0,0.00020409,2]
[372912031,1752803448130,-151.0,0.00020409,2]
[372912033,1752803448139,-151.0,0.00020409,2]
[372912035,1752803448150,-151.0,0.00020409,2]
[372912037,1752803448159,-151.0,0.00020409,2]
[372912039,1752803448169,-151.0,0.00020409,2]
[372912041,1752803448180,-151.0,0.00020409,2]
[372912043,1752803448190,-151.0,0.00020409,2]
[372912045,1752803448200,-151.0,0.00020409,2]
[372912047,1752803448210,-151.0,0.00020409,2]
[372912049,1752803448220,-151.0,0.00020409,2]
[372912051,1752803448230,-264.386969,0.00020409,2]
[372912053,1752803448239,-264.386969,0.00020409,2]
[372912055,1752803448250,-151.0,0.00020409,2]
[372912057,1752803448260,-178.363827,0.00020409,2]
[372912059,1752803448269,-172.867184,0.00020409,2]
[372912061,1752803448279,-172.867184,0.00020409,2]
[372912063,1752803448288,-151.0,0.00020409,2]
[372912065,1752803448298,-208.384237,0.00020409,2]
[372912067,1752803448308,-273.641631,0.00020409,2]
[372912069,1752803448317,-195.418,0.00020409,2]
[372912071,1752803448327,-152.323131,0.00020409,2]
[372912073,1752803448336,-151.0,0.00020409,2]
[372912075,1752803448346,-151.0,0.00020409,2]
[372912077,1752803448358,-156.501313,0.00020409,2]
[372912079,1752803448367,-151.0,0.00020409,2]